Workbook

Sheet Report
A1: 2017/06/30 | F1: Note: 1. 請於A1儲存格輸入您所需要查詢的日期 2. 點選Refresh按鈕即可
D6: 最新同類型持股比率
C7: 第一富 | D7: =第一富傳產!F3 -> 91.42
C8: 傳產 | D8: =第一富傳產!F3 -> 91.42
C9: 高科技 | D9: =高科技!F3 -> 91.66
C10: 新世界 | D10: =新世界!F3 -> 89.72
C11: 全球成長 | D11: =新世界!F3 -> 89.72
C12: 中華 | D12: =中華中消!F3 -> 88.95
C13: 中國消費 | D13: =中華中消!F3 -> 88.95
C14: A股 | D14: =A股!F3 -> 91.91
C15: 全高收 | D15: =全高收!H3 -> 90.82
C16: 投資等級 | D16: =投資等級!H3 -> 89.92
C17: 中高收 | D17: =中高收!H3 -> 90.39
C18: 多重收益 | D18: =多重收益!J3 -> 83.75
C19: 亞太平衡 | D19: =亞太平衡!J3 -> 83.19
C20: 策略高股息 | D20: =新世界!F3 -> 89.72

Sheet 第一富傳產
A1: 2017/06/30
A2: 公司代碼 | B2: TT99 合計數 % | C2: 幣別 | E2: 持股70%以上總家數 | F2: 持股70%以上平均
A3: T0102Y 兆豐國際第一 | B3: 84.18 | C3: NTD | E3: =COUNTIF(B:B,">=70") -> 81 | F3: =ROUND(AVERAGEIFS(B:B,B:B,">=70"),2) -> 91.42
A4: T0103Y 兆豐國際國民 | B4: 85.37 | C4: NTD
A5: T0110Y 兆豐豐台灣 | B5: 93.4 | C5: NTD
A6: T0336Y 第一金創新 | B6: 97.16 | C6: NTD
A7: T0406Y 匯豐成功 | B7: 96.14 | C7: NTD
A8: T0408Y 匯豐龍鳳 | B8: 97.85 | C8: NTD
A9: T0415Y 匯豐台灣精典 | B9: 97.19 | C9: NTD
A10: T0502Y 元多福 | B10: 93.95 | C10: NTD
A11: T0503Y 元大多多基金 | B11: 91.37 | C11: NTD
A12: T0504Y 元卓越 | B12: 89.68 | C12: NTD
A13: T0509Y 元大經貿基金 | B13: 91.39 | C13: NTD
A14: T0513Y 新主流 | B14: 94.97 | C14: NTD
A15: T0567Y 元2001 | B15: 87.22 | C15: NTD
A16: T0568Y 元大績效基金 | B16: 91.77 | C16: NTD
A17: T0601Y 景順潛力 | B17: 97.26 | C17: NTD
A18: T0606Y 景順主流 | B18: 96.82 | C18: NTD
A19: T0705Y 瀚亞外銷 | B19: 90.44 | C19: NTD
A20: T0708Y 瀚亞菁華 | B20: 91.07 | C20: NTD
A21: T0802Y 保德信高成長 | B21: 93.82 | C21: NTD
A22: T0803Y 保德信金滿意 | B22: 94.57 | C22: NTD
A23: T0807Y 保德信第一 | B23: 85.5 | C23: NTD
A24: T0812Y 保德信新世紀 | B24: 95.57 | C24: NTD
A25: T0815Y 保德信台商全方位 | B25: 95.38 | C25: NTD
A26: T0901Y 統一統信 | B26: 90.96 | C26: NTD
A27: T0902Y 統一全天候 | B27: 87.99 | C27: NTD
A28: T0903Y 統一黑馬 | B28: 84.94 | C28: NTD
A29: T0904Y 統一龍馬 | B29: 84.44 | C29: NTD
A30: T0909Y 統一經建 | B30: 87.68 | C30: NTD
A31: T0911Y 統一大滿貫 | B31: 92.2 | C31: NTD
A32: T0922Y 統一台灣動力 | B32: 83.99 | C32: NTD
A33: T1001Y 富邦FB | B33: 91.7 | C33: NTD
A34: T1004Y 富邦精準 | B34: 87.46 | C34: NTD
A35: T1005Y 富邦長紅 | B35: 87.59 | C35: NTD
A36: T1011Y 富邦高成長 | B36: 95.04 | C36: NTD
A37: T1017Y 富邦台灣心 | B37: 93.36 | C37: NTD
A38: T1101Y 摩根台灣 | B38: 97.78 | C38: NTD
A39: T1102Y 摩根台灣增長 | B39: 98 | C39: NTD
A40: T1135Y 摩根台灣金磚 | B40: 96.66 | C40: NTD
A41: T1201Y 華南永昌永昌 | B41: 91.67 | C41: NTD
A42: T1249Y 華南物聯網 | B42: 91.66 | C42: NTD
A43: T1406Y 新光國建 | B43: 95.86 | C43: NTD
A44: T1408Y 新光大三通 | B44: 93.76 | C44: NTD
A45: T1411Y 新光台灣富貴 | B45: 95.42 | C45: NTD
A46: T1601Y 群益奧斯卡 | B46: 94.87 | C46: NTD
A47: T1603Y 群益葛萊美 | B47: 92.44 | C47: NTD
A48: T1609Y 群益馬拉松 | B48: 92.04 | C48: NTD
A49: T1613Y 群益長安 | B49: 88.68 | C49: NTD
A50: T1701Y 德信大發 | B50: 89.05 | C50: NTD
A51: T1802Y 聯博大利 | B51: 96.11 | C51: NTD
A52: T2003Y 日盛上選 | B52: 90.96 | C52: NTD
A53: T2005Y 日盛精選五虎 | B53: 87.3 | C53: NTD
A54: T2007Y 日盛基金 | B54: 93.83 | C54: NTD
A55: T2030Y 日盛首選 | B55: 92.27 | C55: NTD
A56: T2036Y 日盛MIT 主流 | B56: 92.34 | C56: NTD
A57: T2101Y 柏瑞巨人 | B57: 92.4 | C57: NTD
A58: T2203Y 復華基金 | B58: 91.38 | C58: NTD
A59: T2205Y FH高成 | B59: 87.05 | C59: NTD
A60: T2216Y 復華全方位 | B60: 95.49 | C60: NTD
A61: T2501Y 永豐永豐 | B61: 91.04 | C61: NTD
A62: T2703Y 宏利台灣動力 | B62: 95.22 | C62: NTD
A63: T3101Y 貝萊德寶利基金 | B63: 97.38 | C63: NTD
A64: T3201Y 野村優質 | B64: 91.11 | C64: NTD
A65: T3203Y 野村成長 | B65: 83.85 | C65: NTD
A66: T3218Y 野村台灣運籌 | B66: 93.19 | C66: NTD
A67: T3219Y 野村鴻運 | B67: 89.23 | C67: NTD
A68: T3223Y 野村積極成長 | B68: 84.01 | C68: NTD
A69: T3501Y 未來資產阿波羅 | B69: 97.5 | C69: NTD
A70: T3515Y 未來台灣新趨勢 | B70: 98.81 | C70: NTD
A71: T3601Y 安聯台灣大壩 | B71: 87.03 | C71: NTD
A72: T3619Y 安聯台灣智慧 | B72: 91.47 | C72: NTD
A73: T3701Y 國泰國泰 | B73: 90.93 | C73: NTD
A74: T3714Y 國泰小龍 | B74: 88.69 | C74: NTD
A75: T4001Y 德銀遠東DWS 台灣 | B75: 95.09 | C75: NTD
A76: T4101Y 凱基開創 | B76: 82.4 | C76: NTD
A77: T4112Y 凱基台灣精五門 | B77: 85.14 | C77: NTD
A78: T4301Y 華頓台灣 | B78: 87.2 | C78: NTD
A79: T4502Y 富蘭克林華美第一 | B79: 88.17 | C79: NTD
A80: T4511Y 富蘭克林華美傳產 | B80: 86.72 | C80: NTD
A81: T4706Y 台新主流 | B81: 79.01 | C81: NTD
A82: T4801Y 合庫台灣基金 | B82: 93.35 | C82: NTD
A83: T4902Y 大華臺Smart Beta | B83: 92.23 | C83: NTD

Sheet 高科技
A1: 2017/06/30
A2: 公司代碼 | B2: TT99 合計數 % | C2: 幣別 | E2: 持股70%以上總家數 | F2: 持股70%以上平均
A3: T0108Y 兆豐國際電子 | B3: 85.93 | C3: NTD | E3: =COUNTIF(B:B,">=70") -> 27 | F3: =ROUND(AVERAGEIFS(B:B,B:B,">=70"),2) -> 91.66
A4: T0314Y 第一金電子 | B4: 93.86 | C4: NTD
A5: T0410Y 匯豐龍騰電子 | B5: 96.6 | C5: NTD
A6: T0508Y 元高科 | B6: 91.55 | C6: NTD
A7: T0605Y 景順台灣科技 | B7: 95.36 | C7: NTD
A8: T0704Y 瀚亞高科技 | B8: 91.36 | C8: NTD
A9: T0715Y 瀚亞電通網 | B9: 87.49 | C9: NTD
A10: T0808Y 保德信科技島 | B10: 92.79 | C10: NTD
A11: T0910Y 統一奔騰 | B11: 89.46 | C11: NTD
A12: T1012Y 科技FB | B12: 93.92 | C12: NTD
A13: T1104Y 摩根新興科技 | B13: 95.91 | C13: NTD
A14: T1405Y 新光創新科技 | B14: 93.08 | C14: NTD
A15: T1614Y 群益創新科技 | B15: 90.86 | C15: NTD
A16: T1706Y 德信數位時代 | B16: 88.75 | C16: NTD
A17: T2006Y 日盛高科技 | B17: 94.92 | C17: NTD
A18: T2208Y FH數位 | B18: 94 | C18: NTD
A19: T2503Y 永豐高科技 | B19: 89.85 | C19: NTD
A20: T2520Y 永豐領航科技 | B20: 90.91 | C20: NTD
A21: T2903Y 國泰高科技 | B21: 95.17 | C21: NTD
A22: T3205Y 野村e 科技 | B22: 95.98 | C22: NTD
A23: T3228Y 野村高科技 | B23: 93.7 | C23: NTD
A24: T3303Y 聯邦精選科技 | B24: 89.44 | C24: NTD
A25: T3604Y 安聯台灣科技 | B25: 81.69 | C25: NTD
A26: T3707Y 國泰科技生化 | B26: 93.27 | C26: NTD
A27: T4003Y 德銀遠東DWS 科技 | B27: 94.38 | C27: NTD
A28: T4510Y 富蘭克林高科技 | B28: 85.39 | C28: NTD
A29: T4720Y 台新2000高科 | B29: 89.09 | C29: NTD

Sheet 中華中消
A1: 2017/06/30
A2: 公司代碼 | B2: TT99 合計數 % | C2: 幣別 | E2: 持股70%以上總家數 | F2: 持股70%以上平均
A3: T0334Y 第一金中國世紀 | B3: 94.67 | C3: NTD | E3: =COUNTIF(B:B,">=70") -> 38 | F3: =ROUND(AVERAGEIFS(B:B,B:B,">=70"),2) -> 88.95
A4: T0436Y 匯豐中國動力 | B4: 88.84 | C4: NTD
A5: T0475A 匯豐中國科技精選 | B5: 80.62 | C5: NTD
A6: T0556Y 元大新中國基金 | B6: 93.79 | C6: NTD
A7: T0560Y 元大華夏中小 | B7: 89.11 | C7: NTD
A8: T0581Y 元大大中華價值指 | B8: 92.94 | C8: NTD
A9: T0596A 元大大中華 TMT | B9: 95.19 | C9: NTD
A10: T0739Y 瀚亞中國 | B10: 72.18 | C10: NTD
A11: T0809Y 保德信大中華 | B11: 85.84 | C11: NTD
A12: T0832Y 保德信中國品牌 | B12: 92.65 | C12: NTD
A13: T0836Y 保德信中國中小 | B13: 92.12 | C13: NTD
A14: T0921Y 統一強漢 | B14: 92.24 | C14: NTD
A15: T0924Y 統一大中華中小 | B15: 90.44 | C15: NTD
A16: T0931Y 統一大龍騰中國 | B16: 92.19 | C16: NTD
A17: T1028Y 富邦大中華成長 | B17: 87.14 | C17: NTD
A18: T1131Y 摩根金龍收成 | B18: 92.5 | C18: NTD
A19: T1134Y 摩根中國亮點 | B19: 90.25 | C19: NTD
A20: T1403Y 新光中國成長 | B20: 92.44 | C20: NTD
A21: T1419Y 新光兩岸優勢 | B21: 86.86 | C21: NTD
A22: T1611Y 群益華夏盛世 | B22: 81.31 | C22: NTD
A23: T1625Y 群益大中華雙力 | B23: 84.86 | C23: NTD
A24: T1651A 群益中國新機會 | B24: 86.61 | C24: NTD
A25: T1712Y 德信中國精選成長 | B25: 90.06 | C25: NTD
A26: T2037Y 日盛中國內需動力 | B26: 87.65 | C26: NTD
A27: T2260Y 復華華人世紀 | B27: 88.41 | C27: NTD
A28: T2271Y 復華大中華中小策 | B28: 93.76 | C28: NTD
A29: T2539Y 永豐中國經建 | B29: 84.9 | C29: NTD
A30: T2723Y 宏利精選中華 | B30: 93.99 | C30: NTD
A31: T3248Y 野村中國機會 | B31: 87.4 | C31: NTD
A32: T3621Y 安聯中國策略 | B32: 76.45 | C32: NTD
A33: T3631A 安聯中新思路 | B33: 86.02 | C33: NTD
A34: T3726Y 國泰中港台 | B34: 95.82 | C34: NTD
A35: T3731Y 國泰中國內需增長 | B35: 83.69 | C35: NTD
A36: T3734Y 國泰中國新興戰略 | B36: 93.74 | C36: NTD
A37: T4404Y 惠理康和兩岸價值 | B37: 90.92 | C37: NTD
A38: T4505Y 富蘭克林華美中華 | B38: 94.16 | C38: NTD
A39: T4509Y 富蘭克林中國消費 | B39: 88.84 | C39: NTD
A40: T4711Y 台新中國精選中小 | B40: 89.48 | C40: NTD

Sheet A股
A1: 2017/06/30
A2: 公司代碼 | B2: TT99 合計數 % | C2: 幣別 | E2: 持股70%以上總家數 | F2: 持股70%以上平均
A3: T0119A 兆豐中國 A股 | B3: 91.4 | C3: NTD | E3: =COUNTIF(B:B,">=70") -> 7 | F3: =ROUND(AVERAGEIFS(B:B,B:B,">=70"),2) -> 91.91
A4: T0453Y 匯豐中國 A股匯聚 | B4: 88.61 | C4: NTD
A5: T1142Y 摩根中國 A股 | B5: 96.7 | C5: NTD
A6: T1238Y 華南永昌中國A 股 | B6: 88.55 | C6: NTD
A7: T2055A 日盛中國戰略A股 | B7: 92.17 | C7: NTD
A8: T2292A 復華中新經濟A 股 | B8: 92.74 | C8: NTD
A9: T4515Y 富蘭克林中國 A股 | B9: 93.21 | C9: NTD

Sheet 新世界
A1: 2017/06/30
A2: 公司代碼 | B2: TT99 合計數 % | C2: 幣別 | E2: 持股70%以上總家數 | F2: 持股70%以上平均
A3: T0104Y 兆豐國際全球 | B3: 83.43 | C3: NTD | E3: =COUNTIF(B:B,">=70") -> 68 | F3: =ROUND(AVERAGEIFS(B:B,B:B,">=70"),2) -> 89.72
A4: T0109Y 兆豐國際生命科學 | B4: 76.83 | C4: NTD
A5: T0112Y 兆豐國際綠鑽 | B5: 83.34 | C5: NTD
A6: T0114Y 兆豐國際全球高股 | B6: 82.36 | C6: NTD
A7: T0115Y 兆豐國際民生動力 | B7: 83.09 | C7: NTD
A8: T0331Y 第一金全球大趨勢 | B8: 66.18 | C8: NTD
A9: T0346A 第一機器人自動 | B9: 82.71 | C9: NTD
A10: T0347A 第一金 FinTech | B10: 81.71 | C10: NTD
A11: T0546A 元大全球公用能 A | B11: 81.56 | C11: NTD
A12: T0546B 元大全球公用能 B | B12: 81.56 | C12: NTD
A13: T0597A 元大全股票入息A | B13: 93.79 | C13: NTD
A14: T0597B 元大全股票入息B | B14: 93.79 | C14: NTD
A15: T0603Y 景順全球科技 | B15: 90.97 | C15: NTD
A16: T0609Y 景順全球康健 | B16: 95.51 | C16: NTD
A17: T0733Y 瀚亞全球綠色金脈 | B17: 98.13 | C17: NTD
A18: T0751A 瀚亞全球策收股A | B18: 92.11 | C18: NTD
A19: T0751B 瀚亞全球策收股B | B19: 92.11 | C19: NTD
A20: T0816Y 保德信全球醫療生 | B20: 94.2 | C20: NTD
A21: T0817Y 保德信全球中小 | B21: 96.55 | C21: NTD
A22: T0827Y 保德信全球基礎建 | B22: 98.41 | C22: NTD
A23: T0828Y 保德信全球消費商 | B23: 97.45 | C23: NTD
A24: T0933A 統一全球新科技 | B24: 90.88 | C24: NTD
A25: T1108Y 摩根龍揚 | B25: 92.22 | C25: NTD
A26: T1119Y 摩根全球α | B26: 97.62 | C26: NTD
A27: T1127Y 摩根全球發 | B27: 94.94 | C27: NTD
A28: T1155A 摩根環股收益A | B28: 93.29 | C28: NTD
A29: T1155B 摩根環股收益B | B29: 93.29 | C29: NTD
A30: T1217Y 華南永昌全球精品 | B30: 89.54 | C30: NTD
A31: T1250A 華南MSCI全球物聯 | B31: 85.05 | C31: NTD
A32: T1254Y 華南永昌策略報酬 | B32: 79.65 | C32: NTD
A33: T1430Y 新光全球生技醫療 | B33: 96.94 | C33: NTD
A34: T1502Y 瑞銀全球創新趨勢 | B34: 92.84 | C34: NTD
A35: T1649A 群益關鍵生技 | B35: 95.08 | C35: NTD
A36: T1652A 群益工業國入息A | B36: 92.04 | C36: NTD
A37: T1652B 群益工業國入息B | B37: 92.04 | C37: NTD
A38: T1661A 群益全球特別股A | B38: 57.29 | C38: NTD
A39: T1661B 群益全球特別股B | B39: 57.29 | C39: NTD
A40: T2031Y 日盛全球抗暖化 | B40: 88.03 | C40: NTD
A41: T2124A 柏瑞特股息收 A | B41: 77.78 | C41: NTD
A42: T2124B 柏瑞特股息收 B | B42: 77.78 | C42: NTD
A43: T2124C 柏瑞特股息收 N | B43: 77.78 | C43: NTD
A44: T2124D 柏瑞特股息收N9 | B44: 77.78 | C44: NTD
A45: T2252Y 復華全球大趨勢 | B45: 92.36 | C45: NTD
A46: T2286Y 復華全球消費基金 | B46: 83.07 | C46: NTD
A47: T2294A 復華全物聯科技 | B47: 91.94 | C47: NTD
A48: T2527Y 永豐主流品牌 | B48: 89.95 | C48: NTD
A49: T2627A 中信全球股票息 A | B49: 89.9 | C49: NTD
A50: T2627B 中信全球股票息 B | B50: 89.9 | C50: NTD
A51: T2776Y 宏利全球動力股票 | B51: 95.5 | C51: NTD
A52: T3208Y 野村全球品牌 | B52: 93.06 | C52: NTD
A53: T3209A 野村全球高股息 A | B53: 96.59 | C53: NTD
A54: T3209B 野村全球高股息 B | B54: 96.59 | C54: NTD
A55: T3220Y 野村環球 | B55: 85.05 | C55: NTD
A56: T3237Y 野村全球生技醫療 | B56: 88.6 | C56: NTD
A57: T3244Y 野村全球氣候變遷 | B57: 95.96 | C57: NTD
A58: T3521Y 未來資全球大消費 | B58: 90.31 | C58: NTD
A59: T3605Y 安聯全球生技趨勢 | B59: 94.24 | C59: NTD
A60: T3615Y 安聯全球綠能 | B60: 94.82 | C60: NTD
A61: T3617Y 安聯全球人口 | B61: 92.07 | C61: NTD
A62: T3720Y 國泰全球基礎建設 | B62: 90.7 | C62: NTD
A63: T3723Y 國泰全球環保趨勢 | B63: 77.85 | C63: NTD
A64: T3771A 國泰全球高股息 | B64: 93.19 | C64: NTD
A65: T4014A 德銀全球生技創新 | B65: 94.01 | C65: NTD
A66: T4119Y 凱基雲端趨勢基金 | B66: 89.19 | C66: NTD
A67: T4123A 凱基護城河基金 | B67: 88.84 | C67: NTD
A68: T4125A 凱基銀髮商機 | B68: 90.07 | C68: NTD
A69: T4127A 凱基醫院長照 | B69: 30.07 | C69: NTD
A70: T4314Y 華頓全球時尚精品 | B70: 83.83 | C70: NTD
A71: T4504Y 富蘭克林華美新世 | B71: 90.63 | C71: NTD
A72: T4517A 富蘭克林全球成長 | B72: 94.27 | C72: NTD
A73: T4521A 富蘭美高股息A | B73: 55.41 | C73: NTD
A74: T4521B 富蘭美高股息B | B74: 55.41 | C74: NTD
A75: T4808A 合庫全球高股息A | B75: 92.09 | C75: NTD
A76: T4808B 合庫全球高股息B | B76: 92.09 | C76: NTD

Sheet 全高收
A1: 2017/06/30
A2: 公司代碼 | B2: 產業名稱 | C2: 持股率％ | D2: 幣別 | E2: 主基金標示 | G2: 持股70%以上總家數 | H2: 持股70%以上平均
A3: T0332A 第一金全球高收 A | B3: ZAA 買斷債券 | C3: 95.42 | D3: NTD | E3: Y | G3: =COUNTIF(C:C,">=70") -> 15 | H3: =ROUND(AVERAGEIFS(C:C,C:C,">=70"),2) -> 90.82
A4: T0737A 瀚亞全球高收債 A | B4: ZAA 買斷債券 | C4: 93.15 | D4: NTD | E4: Y
A5: T1039A 富邦策略高收債A | B5: ZAA 買斷債券 | C5: 89.45 | D5: NTD | E5: Y
A6: T1814B 聯博全球高收債TA | B6: ZAA 買斷債券 | C6: 84.12 | D6: NTD | E6: Y
A7: T2058A 日盛全球高收債A | B7: ZAA 買斷債券 | C7: 86.95 | D7: NTD | E7: Y
A8: T2111A 柏瑞全球策略高 A | B8: ZAA 買斷債券 | C8: 93.96 | D8: NTD | E8: Y
A9: T2643A 中信全球短高債A | B9: ZAA 買斷債券 | C9: 81.6 | D9: NTD | E9: Y
A10: T2763A 宏利美元高收債 A | B10: ZAA 買斷債券 | C10: 93.31 | D10: NTD | E10: Y
A11: T3259A 野村環高債 A | B11: ZAA 買斷債券 | C11: 98.04 | D11: NTD | E11: Y
A12: T3287A 野村美利高收債A | B12: ZAA 買斷債券 | C12: 94.69 | D12: NTD | E12: Y
A13: T3737A 國泰策略高收債 A | B13: ZAA 買斷債券 | C13: 80.1 | D13: NTD | E13: Y
A14: T4214A 施羅德全球策略 A | B14: ZAA 買斷債券 | C14: 95.95 | D14: NTD | E14: Y
A15: T4322A 華頓全球高收益 A | B15: ZAA 買斷債券 | C15: 90.41 | D15: NTD | E15: Y
A16: T4512A 富蘭全高收債A | B16: ZAA 買斷債券 | C16: 92.1 | D16: NTD | E16: Y
A17: T4757A 台新絲路高收債A | B17: ZAA 買斷債券 | C17: 20.35 | D17: NTD | E17: Y
A18: T4804A 合庫全球高收債 A | B18: ZAA 買斷債券 | C18: 93.12 | D18: NTD | E18: Y

Sheet 投資等級
A1: 2017/06/30
A2: 公司代碼 | B2: 產業名稱 | C2: 持股率％ | D2: 幣別 | E2: 主基金標示 | G2: 持股70%以上總家數 | H2: 持股70%以上平均
A3: T0440A 匯豐資源豐富國-A | B3: ZAA 買斷債券 | C3: 96.47 | D3: NTD | E3: Y | G3: =COUNTIF(C:C,">=70") -> 7 | H3: =ROUND(AVERAGEIFS(C:C,C:C,">=70"),2) -> 89.92
A4: T0599A 元大美元公司債A | B4: ZAA 買斷債券 | C4: 91.73 | D4: NTD | E4: Y
A5: T1034A 富邦全球投資 A | B5: ZAA 買斷債券 | C5: 75.41 | D5: NTD | E5: Y
A6: T1434A 新光全球債券A | B6: ZAA 買斷債券 | C6: 91.34 | D6: NTD | E6: Y
A7: T1711Y 德信萬瑞 | B7: ZAA 買斷債券 | C7: 66.98 | D7: NTD | E7: Y
A8: T2211Y 復華全球債券 | B8: ZAA 買斷債券 | C8: 66.1 | D8: NTD | E8: Y
A9: T3249A 野村全球美元債 A | B9: ZAA 買斷債券 | C9: 97.11 | D9: NTD | E9: Y
A10: T3607Y 安聯全球債 A | B10: ZAA 買斷債券 | C10: 82.17 | D10: NTD | E10: Y
A11: T4514A 富蘭全球投資債 A | B11: ZAA 買斷債券 | C11: 95.18 | D11: NTD | E11: Y

Sheet 中高收
A1: 2017/06/30
A2: 公司代碼 | B2: 產業名稱 | C2: 持股率％ | D2: 幣別 | E2: 主基金標示 | G2: 持股70%以上總家數 | H2: 持股70%以上平均
A3: T0345A 第一金人幣高債A | B3: ZAA 買斷債券 | C3: 94.86 | D3: NTD | E3: Y | G3: =COUNTIF(C:C,">=70") -> 11 | H3: =ROUND(AVERAGEIFS(C:C,C:C,">=70"),2) -> 90.39
A4: T0449Y 匯豐點心債 A | B4: ZAA 買斷債券 | C4: 95.97 | D4: NTD | E4: Y
A5: T0566Y 元大中國高收點心 | B5: ZAA 買斷債券 | C5: 90.92 | D5: NTD | E5: Y
A6: T0932A 統一中國高收債A | B6: ZAA 買斷債券 | C6: 84.39 | D6: NTD | E6: Y
A7: T1233A 華南人民幣高收 A | B7: ZAA 買斷債券 | C7: 92.14 | D7: NTD | E7: Y
A8: T1654A 群益中國高收債 | B8: ZAA 買斷債券 | C8: 93.21 | D8: NTD | E8: Y
A9: T2045A 日盛中國高收債A | B9: ZAA 買斷債券 | C9: 84.88 | D9: NTD | E9: Y
A10: T2540Y 永豐中高收益債 A | B10: ZAA 買斷債券 | C10: 90.14 | D10: NTD | E10: Y
A11: T3768A 國泰中國高收債A | B11: ZAA 買斷債券 | C11: 91.87 | D11: NTD | E11: Y
A12: T4216A 施羅德中高 A | B12: ZAA 買斷債券 | C12: 94.25 | D12: NTD | E12: Y
A13: T4516Y 富蘭克林中國高收 | B13: ZAA 買斷債券 | C13: 81.62 | D13: NTD | E13: Y

Sheet 多重收益
A1: 2017/06/30
A2: 公司代碼 | B2: 產業名稱 | C2: 持股率％ | D2: TT99 合計數 % | E2: 幣別 | F2: 主基金標示 | G2: Total | I2: 持股70%以上總家數 | J2: 持股70%以上平均
A3: T0343A 第一金全球多息 A | B3: ZAA 買斷債券 | C3: 15.41 | D3: 64.84 | E3: NTD | F3: Y | G3: 80.25 | I3: =COUNTIF(G:G,">=70") -> 16 | J3: =ROUND(AVERAGEIFS(G:G,G:G,">=70"),2) -> 83.75
A4: T0750A 瀚亞全球策收平A | B4: ZAA 買斷債券 | C4: 25.48 | D4: 67 | E4: NTD | F4: Y | G4: 92.48
A5: T1117Y 摩根全球平衡 | B5: ZAA 買斷債券 | C5: 50.53 | D5: 39.34 | E5: NTD | F5: Y | G5: 89.87
A6: T1239A 華南多重息平衡 A | B6: ZAA 買斷債券 | C6: 0 | D6: 70.24 | E6: NTD | F6: Y | G6: 70.24
A7: T1433A 新光美豐收平衡A | B7: ZAA 買斷債券 | C7: 55.28 | D7: 28.17 | E7: NTD | F7: Y | G7: 83.45
A8: T1659A 群益金選報酬平A | B8: ZAA 買斷債券 | C8: 50.58 | D8: 43.28 | E8: NTD | F8: Y | G8: 93.86
A9: T2213Y 復華全球平衡 | B9: ZAA 買斷債券 | C9: 35.19 | D9: 47.9 | E9: NTD | F9: Y | G9: 83.09
A10: T2624A 中信入息平衡A | B10: ZAA 買斷債券 | C10: 14.88 | D10: 63.71 | E10: NTD | F10: Y | G10: 78.59
A11: T2639A 中信樂齡收益平A | B11: ZAA 買斷債券 | C11: 22.86 | D11: 63.37 | E11: NTD | F11: Y | G11: 86.23
A12: T3276A 野村多元平衡A | B12: ZAA 買斷債券 | C12: 41.49 | D12: 53.72 | E12: NTD | F12: Y | G12: 95.21
A13: T3295A 野村多元收益平A | B13: ZAA 買斷債券 | C13: 54.62 | D13: 30.28 | E13: NTD | F13: Y | G13: 84.9
A14: T32A3A 野村多元核心平衡 | B14: ZAA 買斷債券 | C14: 57.71 | D14: 21.96 | E14: NTD | F14: Y | G14: 79.67
A15: T3341A 聯邦全視界平衡A | B15: ZAA 買斷債券 | C15: 22.35 | D15: 59 | E15: NTD | F15: Y | G15: 81.35
A16: T3743A 國泰全多重平衡 A | B16: ZAA 買斷債券 | C16: 36.71 | D16: 35.71 | E16: NTD | F16: Y | G16: 72.42
A17: T4126A 凱基全高效平衡A | B17: ZAA 買斷債券 | C17: 29.86 | D17: 43.98 | E17: NTD | F17: Y | G17: 73.84
A18: T4518A 富蘭克林多收平A | B18: ZAA 買斷債券 | C18: 34.16 | D18: 60.37 | E18: NTD | F18: Y | G18: 94.53

Sheet 亞太平衡
A1: 2017/06/30
A2: 公司代碼 | B2: 產業名稱 | C2: 持股率％ | D2: TT99 合計數 % | E2: 幣別 | F2: 主基金標示 | G2: Total | I2: 持股70%以上總家數 | J2: 持股70%以上平均
A3: T0121A 兆豐大中華平衡 | B3: ZAA 買斷債券 | C3: 17.87 | D3: 70.9 | E3: NTD | F3: Y | G3: 88.77 | I3: =COUNTIF(G:G,">=70") -> 15 | J3: =ROUND(AVERAGEIFS(G:G,G:G,">=70"),2) -> 83.19
A4: T0479A 匯亞exJP多息平 A | B4: ZAA 買斷債券 | C4: 36.8 | D4: 43.74 | E4: NTD | F4: Y | G4: 80.54
A5: T05A2A 元大新東協平衡 | B5: ZAA 買斷債券 | C5: 37.45 | D5: 56.44 | E5: NTD | F5: Y | G5: 93.89
A6: T05A3A 元大大中華豐平 | B6: ZAA 買斷債券 | C6: 32.36 | D6: 46.06 | E6: NTD | F6: Y | G6: 78.42
A7: T0747A 瀚亞亞太豐平衡 A | B7: ZAA 買斷債券 | C7: 46.14 | D7: 35.27 | E7: NTD | F7: Y | G7: 81.41
A8: T1120A 摩根亞高息平衡 A | B8: ZAA 買斷債券 | C8: 31.75 | D8: 57.15 | E8: NTD | F8: Y | G8: 88.9
A9: T1252A 華南亞太動態平 A | B9: ZAA 買斷債券 | C9: 28.12 | D9: 55.26 | E9: NTD | F9: Y | G9: 83.38
A10: T1604Y 群益亞太新趨勢平 | B10: ZAA 買斷債券 | C10: 22.05 | D10: 67.58 | E10: NTD | F10: Y | G10: 89.63
A11: T1812A 聯博亞收成長平A2 | B11: ZAA 買斷債券 | C11: 36.75 | D11: 49.91 | E11: NTD | F11: Y | G11: 86.66
A12: T2217Y 復華亞太平衡 | B12: ZAA 買斷債券 | C12: 27.54 | D12: 52.3 | E12: NTD | F12: Y | G12: 79.84
A13: T2630A 中信亞太多元息A | B13: ZAA 買斷債券 | C13: 10.36 | D13: 67.12 | E13: NTD | F13: Y | G13: 77.48
A14: T2751A 宏亞澳入息成平A | B14: ZAA 買斷債券 | C14: 31.19 | D14: 45.28 | E14: NTD | F14: Y | G14: 76.47
A15: T3328A 聯邦太平洋平衡A | B15: ZAA 買斷債券 | C15: 29.16 | D15: 46.34 | E15: NTD | F15: Y | G15: 75.5
A16: T3769A 國泰亞太息平衡A | B16: ZAA 買斷債券 | C16: 30.08 | D16: 50.35 | E16: NTD | F16: Y | G16: 80.43
A17: T4519A 富蘭亞太平衡A | B17: ZAA 買斷債券 | C17: 37.18 | D17: 49.39 | E17: NTD | F17: Y | G17: 86.57
